fUSD/lending_fUSD_20250702
["ID","MTS","AMOUNT","RATE_DAILY","PERIOD"]
[369014474,1751434251428,-914.02,0.00016975,2]
[369014476,1751434251437,-490.0,0.00016975,2]
[369014478,1751434251447,-692.35,0.00016975,2]
[369014480,1751434251456,-490.0,0.00016975,2]
[369014482,1751434251465,-490.0,0.00016975,2]
[369014483,1751434251474,-490.0,0.00016975,2]
[369014485,1751434251484,-490.0,0.00016975,2]
[369014486,1751434251493,-490.0,0.00016975,2]
[369014487,1751434251502,-490.0,0.00016975,2]
[369014488,1751434251512,-812.02,0.00016975,2]
[369014489,1751434251521,-1543.31,0.00016975,2]
[369014490,1751434251530,-490.0,0.00016975,2]
[369014491,1751434251540,-490.0,0.00016975,2]
[369014492,1751434251549,-490.0,0.00016975,2]
[369014493,1751434251558,-748.08,0.00016975,2]
[369014494,1751434251567,-508.32,0.00016975,2]
[369014495,1751434251577,-490.0,0.00016975,2]
[369014496,1751434251586,-493.98805957,0.00016975,2]
[369014497,1751434251596,-490.0,0.00016975,2]
[369014498,1751434251606,-813.82,0.00016975,2]
[369014499,1751434251615,-490.0,0.00016975,2]
[369014500,1751434251624,-394.6,0.00016975,2]
[369014501,1751434251635,-490.0,0.00016975,2]
[369014502,1751434251644,-490.0,0.00016975,2]
[369014503,1751434251654,-490.0,0.00016975,2]
[369014504,1751434251663,-490.0,0.00016975,2]
[369014505,1751434251672,-490.0,0.00016975,2]
[369014506,1751434251682,-490.0,0.00016975,2]
[369014507,1751434251692,-151.0,0.00016976,2]
[369014508,1751434251702,-490.0,0.00016976,2]
[369014509,1751434251711,-151.0,0.00016976,2]
[369014510,1751434251720,-357.11,0.00016976,2]
[369014511,1751434251729,-490.0,0.00016976,2]
[369014512,1751434251738,-490.0,0.00016976,2]
[369014513,1751434251747,-490.0,0.00016976,2]
[369014514,1751434251755,-490.43,0.00016976,2]
[369014515,1751434251764,-350.78050099,0.00016976,2]
[369014516,1751434251773,-490.0,0.00016976,2]
[369014517,1751434251782,-490.0,0.00016976,2]
[369014518,1751434251791,-490.0,0.00016976,2]
[369014519,1751434251800,-490.0,0.00016976,2]
[369014520,1751434251809,-490.0,0.00016976,2]
[369014522,1751434251818,-490.0,0.00016976,2]
[369014523,1751434251827,-490.0,0.00016976,2]
[369014525,1751434251836,-490.0,0.00016976,2]
[369014527,1751434251846,-490.0,0.00016976,2]
[369014529,1751434251855,-490.0,0.00016976,2]
[369014530,1751434251864,-490.0,0.00016976,2]
[369014532,1751434251874,-490.0,0.00016976,2]
[369014534,1751434251884,-490.0,0.00016976,2]
[369014536,1751434251893,-625.05,0.00016976,2]
[369014538,1751434251903,-490.0,0.00016976,2]
[369014540,1751434251912,-490.0,0.00016976,2]
[369014542,1751434251921,-490.0,0.00016976,2]
[369014544,1751434251931,-490.0,0.00016976,2]
[369014546,1751434251940,-151.0,0.00016976,2]
[369014548,1751434251949,-490.0,0.00016976,2]
[369014550,1751434251958,-490.0,0.00016976,2]
[369014552,1751434251967,-490.0,0.00016976,2]
[369014554,1751434251977,-384.71007674,0.00016976,2]
[369014556,1751434251986,-490.0,0.00016976,2]
[369014558,1751434252000,-531.84,0.00016976,2]
[369014560,1751434252009,-490.0,0.00016976,2]
[369014562,1751434252017,-490.0,0.00016976,2]
[369014564,1751434252026,-626.54578247,0.00016976,2]
[369014566,1751434252036,-490.0,0.00016976,2]
[369014568,1751434252045,-490.0,0.00016976,2]
[369014570,1751434252054,-490.0,0.00016976,2]
[369014572,1751434252063,-490.0,0.00016976,2]
[369014574,1751434252072,-490.0,0.00016976,2]
[369014576,1751434252082,-881.63,0.00016976,2]
[369014578,1751434252090,-490.0,0.00016976,2]
[369014580,1751434252100,-151.0,0.00016976,2]
[369014582,1751434252109,-490.0,0.00016976,2]
[369014583,1751434252118,-490.0,0.00016976,2]
[369014585,1751434252129,-490.0,0.00016976,2]
[369014587,1751434252138,-490.0,0.00016976,2]
[369014589,1751434252148,-490.0,0.00016976,2]
[369014591,1751434252158,-490.0,0.00016976,2]
[369014593,1751434252168,-490.0,0.00016976,2]
[369014595,1751434252177,-270.65449196,0.00016976,2]
[369014597,1751434252191,-219.34550804,0.00016976,2]
[369014599,1751434252200,-1016.88,0.00016976,2]
[369014601,1751434252209,-490.0,0.00016976,2]
[369014603,1751434252219,-490.0,0.00016976,2]
[369014605,1751434252228,-490.0,0.00016976,2]
[369014607,1751434252237,-490.0,0.00016976,2]
[369014609,1751434252246,-544.78,0.00016976,2]
[369014611,1751434252261,-490.0,0.00016976,2]
[369014614,1751434252275,-490.0,0.00016976,2]
[369014616,1751434252288,-490.0,0.00016976,2]
[369014618,1751434252299,-490.0,0.00016976,2]
[369014620,1751434252310,-490.0,0.00016976,2]
[369014622,1751434252322,-928.85,0.00016976,2]
[369014625,1751434252336,-554.42,0.00016976,2]
[369014627,1751434252349,-490.0,0.00016976,2]
[369014629,1751434252363,-490.0,0.00016976,2]
[369014632,1751434252376,-490.0,0.00016976,2]
[369014634,1751434252391,-151.0,0.00016976,2]
[369014636,1751434252403,-496.84,0.00016976,2]
[369014638,1751434252415,-490.0,0.00016976,2]
[369014641,1751434252427,-172.39881953,0.00016976,2]
[369014643,1751434252438,-643.2,0.00016976,2]
[369014645,1751434252448,-490.0,0.00016976,2]
[369014647,1751434252462,-151.0,0.00016976,2]
[369014649,1751434252479,-900.18,0.00016976,2]
[369014652,1751434252491,-490.0,0.00016976,2]
[369014654,1751434252503,-229.18,0.00016976,2]
[369014656,1751434252515,-490.0,0.00016976,2]
[369014658,1751434252527,-490.0,0.00016976,2]
[369014661,1751434252540,-798.26,0.00016976,2]
[369014663,1751434252552,-2111.8,0.00016976,2]
[369014665,1751434252564,-490.0,0.00016976,2]
[369014667,1751434252576,-490.0,0.00016976,2]
[369014669,1751434252588,-244.54,0.00016976,2]
[369014672,1751434252600,-490.0,0.00016976,2]
[369014674,1751434252612,-490.0,0.00016976,2]
[369014676,1751434252625,-534.76,0.00016976,2]
[369014678,1751434252636,-901.72,0.00016976,2]
[369014681,1751434252648,-490.0,0.00016976,2]
[369014683,1751434252660,-490.0,0.00016976,2]
[369014685,1751434252672,-452.29,0.00016976,2]
[369014687,1751434252685,-1205.67,0.00016976,2]
[369014690,1751434252698,-660.15,0.00016976,2]
[369014692,1751434252710,-490.0,0.00016976,2]
[369014694,1751434252721,-601.93,0.00016976,2]
[369014696,1751434252733,-1077.7,0.00016976,2]
[369014698,1751434252743,-490.0,0.00016976,2]
[369014700,1751434252754,-490.0,0.00016976,2]
[369014702,1751434252764,-490.0,0.00016976,2]
[369014704,1751434252775,-934.07,0.00016976,2]
[369014707,1751434252789,-490.0,0.00016976,2]
[369014709,1751434252802,-490.0,0.00016976,2]
[369014711,1751434252812,-1360.1,0.00016976,2]
[369014713,1751434252822,-490.0,0.00016976,2]
[369014715,1751434252832,-490.0,0.00016976,2]
[369014717,1751434252843,-543.32,0.00016976,2]
[369014719,1751434252854,-490.0,0.00016976,2]
[369014722,1751434252867,-157.35,0.00016976,2]
[369014724,1751434252879,-2883.53,0.00016976,2]
[369014726,1751434252890,-732.06,0.00016976,2]
[369014728,1751434252900,-490.0,0.00016976,2]
[369014730,1751434252910,-1342.41,0.00016976,2]
[369014732,1751434252920,-490.0,0.00016976,2]
[369014734,1751434252931,-490.0,0.00016976,2]
[369014736,1751434252942,-490.0,0.00016976,2]
[369014739,1751434252956,-490.0,0.00016976,2]
[369014741,1751434252967,-490.0,0.00016976,2]
[369014743,1751434252977,-1204.62,0.00016976,2]
[369014745,1751434252990,-490.0,0.00016976,2]
[369014747,1751434253001,-490.0,0.00016976,2]
[369014749,1751434253011,-490.0,0.00016976,2]
[369014751,1751434253023,-243.06,0.00016976,2]
[369014753,1751434253033,-1682.73,0.00016976,2]
[369014755,1751434253044,-490.0,0.00016976,2]
[369014757,1751434253056,-490.0,0.00016976,2]
[369014760,1751434253068,-490.0,0.00016976,2]
[369014762,1751434253079,-518.27,0.00016976,2]
[369014764,1751434253089,-490.0,0.00016976,2]
[369014766,1751434253100,-655.79,0.00016976,2]
[369014768,1751434253111,-490.0,0.00016976,2]
[369014770,1751434253122,-615.93,0.00016976,2]
[369014772,1751434253133,-490.0,0.00016976,2]
[369014774,1751434253145,-490.0,0.00016976,2]
[369014777,1751434253156,-499.84,0.00016976,2]
[369014779,1751434253167,-490.0,0.00016976,2]
[369014781,1751434253178,-611.23,0.00016976,2]
[369014783,1751434253188,-490.0,0.00016976,2]
[369014785,1751434253199,-1031.85,0.00016976,2]
[369014787,1751434253210,-575.52,0.00016976,2]
[369014789,1751434253221,-490.0,0.00016976,2]
[369014791,1751434253232,-490.0,0.00016976,2]
[369014794,1751434253243,-490.0,0.00016976,2]
[369014796,1751434253254,-1070.35,0.00016976,2]
[369014798,1751434253265,-490.0,0.00016976,2]
[369014800,1751434253275,-490.0,0.00016976,2]
[369014802,1751434253286,-3339.96,0.00016976,2]
[369014804,1751434253297,-490.0,0.00016976,2]
[369014806,1751434253309,-490.0,0.00016976,2]
[369014808,1751434253320,-750.65,0.00016976,2]
[369014811,1751434253331,-1476.15,0.00016976,2]
[369014813,1751434253342,-490.0,0.00016976,2]
[369014815,1751434253353,-490.0,0.00016976,2]
[369014817,1751434253364,-670.46,0.00016976,2]
[369014819,1751434253376,-490.0,0.00016976,2]
[369014821,1751434253387,-490.0,0.00016976,2]
[369014823,1751434253398,-490.0,0.00016976,2]
[369014825,1751434253409,-490.0,0.00016976,2]
[369014827,1751434253420,-2335.43,0.00016976,2]
[369014830,1751434253432,-490.0,0.00016976,2]
[369014832,1751434253443,-490.0,0.00016976,2]
[369014834,1751434253454,-3053.67,0.00016976,2]
[369014836,1751434253466,-490.0,0.00016976,2]
[369014838,1751434253477,-1752.71,0.00016976,2]
[369014840,1751434253488,-844.04,0.00016976,2]
[369014842,1751434253499,-490.0,0.00016976,2]
[369014844,1751434253511,-490.0,0.00016976,2]
[369014847,1751434253522,-490.0,0.00016976,2]
[369014849,1751434253533,-490.0,0.00016976,2]
[369014851,1751434253544,-869.8,0.00016976,2]
[369014853,1751434253555,-490.0,0.00016976,2]
[369014855,1751434253565,-490.0,0.00016976,2]
[369014857,1751434253576,-1322.67,0.00016976,2]
[369014859,1751434253587,-490.0,0.00016976,2]
[369014861,1751434253598,-597.37,0.00016976,2]
[369014863,1751434253610,-1181.4,0.00016976,2]
[369014865,1751434253621,-490.0,0.00016976,2]
[369014868,1751434253632,-490.0,0.00016976,2]
[369014870,1751434253646,-490.0,0.00016976,2]
[369014872,1751434253658,-913.95,0.00016976,2]
[369014874,1751434253669,-490.0,0.00016976,2]
[369014876,1751434253680,-490.0,0.00016976,2]
[369014878,1751434253691,-3665.35,0.00016976,2]
[369014880,1751434253702,-573.98,0.00016976,2]
[369014882,1751434253713,-490.0,0.00016976,2]
[369014885,1751434253726,-1299.81,0.00016976,2]
[369014887,1751434253737,-1138.98,0.00016976,2]
[369014889,1751434253748,-490.0,0.00016976,2]
[369014891,1751434253759,-490.0,0.00016976,2]
[369014893,1751434253770,-490.0,0.00016976,2]
[369014895,1751434253780,-490.0,0.00016976,2]
[369014897,1751434253792,-490.0,0.00016977,2]
[369014899,1751434253802,-490.0,0.00016977,2]
[369014901,1751434253813,-490.0,0.00016977,2]
[369014904,1751434253826,-157.04484862,0.00016977,2]
[369014906,1751434253837,-490.0,0.00016977,2]
[369014908,1751434253848,-490.0,0.00016977,2]
[369014910,1751434253859,-490.0,0.00016977,2]
[369014912,1751434253870,-490.0,0.00016977,2]
[369014914,1751434253882,-490.0,0.00016977,2]
[369014916,1751434253893,-591.51,0.00016977,2]
[369014918,1751434253905,-591.51,0.00016977,2]
[369014920,1751434253915,-490.0,0.00016977,2]
[369014922,1751434253928,-490.0,0.00016977,2]
[369014924,1751434253939,-490.0,0.00016977,2]
[369014926,1751434253950,-276.32385521,0.00016977,2]
[369014928,1751434253960,-490.0,0.00016977,2]
[369014931,1751434253971,-490.0,0.00016977,2]
[369014933,1751434253983,-490.0,0.00016977,2]
[369014935,1751434253996,-152.092856,0.00016977,2]
[369014937,1751434254007,-517.05981983,0.00016977,2]
[369014939,1751434254019,-158.08174651,0.00016977,2]
[369014941,1751434254029,-505.71154608,0.00016977,2]
[369014943,1751434254042,-495.709492,0.00016977,2]
[369014945,1751434254053,-497.91593867,0.00016977,2]
[369014948,1751434254064,-150.77871083,0.00016977,2]
[369014950,1751434254075,-490.0,0.00016977,2]
[369014952,1751434254085,-499.03391386,0.00016977,2]
[369014954,1751434254096,-490.0,0.00016977,2]
[369014956,1751434254107,-492.81618826,0.00016977,2]
[369014958,1751434254118,-248.01609483,0.00016977,2]
[369014960,1751434254129,-151.0,0.00016977,2]
[369014962,1751434254140,-151.0,0.00016977,2]
[369014965,1751434254152,-151.0,0.00016977,2]
[369014967,1751434254163,-32023.58,0.00016977,2]
[369014969,1751434254174,-254.939027,0.00016977,2]
[369014971,1751434254185,-1749.79,0.00016977,2]
[369014973,1751434254196,-33627.8455706,0.00016978,2]
[369017170,1751434422174,156.79066556,0.00027397,120]
[369017179,1751434736133,-511.11,0.00015757,2]
[369017180,1751434736158,-250.0,0.00015757,2]
[369017181,1751434736182,-168.82,0.00015801,2]
[369017182,1751434736205,-500.0,0.00015823,2]
[369017183,1751434736229,-1185.0,0.00016193,2]
[369017184,1751434736253,-165.1,0.00016202,2]
[369017185,1751434736276,-300.0,0.00016252,2]
[369017186,1751434736299,-255.67191909,0.00016302,2]
[369017187,1751434736321,-250.0,0.00016302,2]
[369017188,1751434736344,-2352.7615,0.00016338,2]
[369017189,1751434736370,-300.0,0.00016402,2]
[369017190,1751434736394,-1200.0,0.00016501,2]
[369017191,1751434736418,-1600.08973048,0.00016502,2]
[369017192,1751434736442,-300.0,0.0001652,2]
[369017193,1751434736464,-250.0,0.00016521,2]
[369017194,1751434736491,-2500.0,0.00016521,2]
[369017195,1751434736515,-168.2,0.00016546,2]
[369017196,1751434736540,-300.0,0.00016581,2]
[369017197,1751434736565,-2540.20468233,0.00016601,2]
[369017198,1751434736589,-490.0,0.00016601,2]
[369017199,1751434736612,-493.10351333,0.00016601,2]
[369017200,1751434736634,-491.84317948,0.00016601,2]
[369017201,1751434736657,-490.0,0.00016601,2]
[369017202,1751434736681,-490.0,0.00016601,2]
[369017203,1751434736705,-615.43,0.00016601,2]
[369017204,1751434736727,-490.0,0.00016601,2]
[369017205,1751434736751,-490.0,0.00016601,2]
[369017206,1751434736775,-490.0,0.00016601,2]
[369017207,1751434736798,-490.0,0.00016601,2]
[369017208,1751434736822,-1004.0,0.00016601,2]
[369017209,1751434736845,-493.71418108,0.00016601,2]
[369017210,1751434736868,-2135.93,0.00016601,2]
[369017211,1751434736891,-490.0,0.00016601,2]
[369017212,1751434736916,-1021.17,0.00016601,2]
[369017213,1751434736939,-490.0,0.00016601,2]
[369017214,1751434736974,-647.23,0.00016601,2]
[369017215,1751434736999,-490.0,0.00016601,2]
[369017216,1751434737023,-490.0,0.00016601,2]
[369017217,1751434737046,-490.0,0.00016601,2]
[369017218,1751434737070,-761.73,0.00016601,2]
[369017219,1751434737096,-490.0,0.00016601,2]
[369017220,1751434737119,-490.0,0.00016601,2]
[369017221,1751434737144,-378.89129421,0.00016601,2]
[369017222,1751434737974,490.0,0.00027397,120]
[369017242,1751435050753,490.0,0.00027397,120]
[369017277,1751435252970,160.51,0.00013699,2]
[369017377,1751435431879,-250.0,0.00015,2]
[369017378,1751435431889,-344.56316676,0.00015443,2]
[369017379,1751435431901,-655.43683324,0.00015443,2]
[369017380,1751435431911,-1200.0,0.00015484,2]
[369017381,1751435431920,-17591.3331436,0.00015485,2]
[369017382,1751435431938,-2641.9868564,0.00015485,2]
[369017383,1751435431948,-159.34,0.00015866,2]
[369017384,1751435431957,-159.34,0.00015872,2]
[369017385,1751435431967,-159.34,0.00015878,2]
[369017386,1751435431976,-159.34,0.00015884,2]
[369017387,1751435431986,-159.34,0.0001589,2]
[369017388,1751435431995,-159.34,0.00015896,2]
[369017389,1751435432004,-159.34,0.00015902,2]
[369017390,1751435432013,-159.34,0.00015908,2]
[369017391,1751435432023,-159.34,0.00015914,2]
[369017392,1751435432032,-159.34,0.00015921,2]
[369017393,1751435432041,-159.34,0.00015927,2]
[369017394,1751435432051,-159.34,0.00015933,2]
[369017395,1751435432060,-159.34,0.00015939,2]
[369017396,1751435432069,-159.34,0.00015945,2]
[369017397,1751435432078,-529.0,0.00015997,2]
[369017398,1751435432087,-207.4,0.00016133,2]
[369017399,1751435432097,-1375.88657346,0.00016193,2]
[369017400,1751435432106,-870.92329027,0.00016465,2]
[369017401,1751435432115,-2000.0,0.000165,5]
[369017402,1751435432124,-31.7183141,0.00016501,2]
[369017403,1751435432147,-2468.2816859,0.00016501,2]
[369017404,1751435432156,-955.65557855,0.00016527,2]
[369017405,1751435432168,-940.43932271,0.00016527,2]
[369017406,1751435432179,-701.24350089,0.00016527,2]
[369017407,1751435432188,-300.0,0.00016591,2]
[369017408,1751435432197,-151.0,0.00016591,2]
[369017409,1751435432206,-151.0,0.00016591,2]
[369017410,1751435432216,-493.80288011,0.00016591,2]
[369017411,1751435432225,-500.0,0.00016591,2]
[369017412,1751435432234,-431.75931127,0.00016591,2]
[369017414,1751435432243,-300.0,0.00016591,2]
[369017415,1751435432253,-151.0,0.00016591,2]
[369017417,1751435432262,-151.0,0.00016591,2]
[369017419,1751435432271,-151.0,0.00016591,2]
[369017421,1751435432281,-151.0,0.00016591,2]
[369017423,1751435432290,-151.0,0.00016591,2]
[369017425,1751435432299,-151.0,0.00016591,2]
[369017426,1751435432309,-151.0,0.00016591,2]
[369017427,1751435432317,-151.0,0.00016591,2]
[369017428,1751435432326,-151.0,0.00016591,2]
[369017429,1751435432336,-151.0,0.00016591,2]
[369017430,1751435432345,-151.0,0.00016591,2]
[369017431,1751435432355,-151.0,0.00016591,2]
[369017432,1751435432364,-151.0,0.00016591,2]
[369017433,1751435432375,-151.0,0.00016591,2]
[369017434,1751435432386,-151.0,0.00016591,2]
[369017435,1751435432396,-151.0,0.00016591,2]
[369017436,1751435432405,-151.0,0.00016591,2]
[369017437,1751435432414,-151.0,0.00016591,2]
[369017439,1751435432423,-294.24016909,0.00016591,2]
[369017441,1751435432433,-753.27,0.00016591,2]
[369017443,1751435432442,-490.0,0.000166,2]
[369017445,1751435432451,-948.79,0.000166,2]
[369017447,1751435432461,-490.0,0.000166,2]
[369017449,1751435432470,-490.0,0.000166,2]
[369017451,1751435432479,-490.0,0.000166,2]
[369017453,1751435432488,-490.0,0.000166,2]
[369017455,1751435432497,-490.0,0.000166,2]
[369017456,1751435432507,-1268.36,0.000166,2]
[369017457,1751435432517,-490.0,0.000166,2]
[369017458,1751435432526,-1228.48,0.000166,2]
[369017459,1751435432535,-2640.55,0.000166,2]
[369017460,1751435432545,-490.0,0.000166,2]
[369017461,1751435432555,-490.0,0.000166,2]
[369017462,1751435432564,-490.0,0.000166,2]
[369017463,1751435432573,-792.82,0.000166,2]
[369017464,1751435432582,-490.0,0.000166,2]
[369017465,1751435432593,-978.29,0.000166,2]
[369017466,1751435432603,-626.66681929,0.000166,2]
[369017467,1751435432615,-522.61318071,0.000166,2]
[369017468,1751435432625,-490.0,0.000166,2]
[369017469,1751435432634,-437.38681929,0.000166,2]
[369017470,1751435432655,-127.19318071,0.000166,2]
[369017471,1751435432666,-490.0,0.000166,2]
[369017472,1751435432675,-490.0,0.000166,2]
[369017473,1751435432685,-1568.17,0.000166,2]
[369017474,1751435432694,-490.0,0.000166,2]
[369017475,1751435432703,-172.03833368,0.000166,2]
[369017476,1751435432715,-317.96166632,0.000166,2]
[369017477,1751435432724,-421.52789468,0.000166,2]
[369017478,1751435432753,-534.0,0.000166,2]
[369017479,1751435432766,-141.17210532,0.000166,2]
[369017480,1751435432777,-1208.68,0.000166,2]
[369017481,1751435432786,-490.0,0.000166,2]
[369017482,1751435432796,-16.30693197,0.000166,2]
[369017483,1751435432822,-262.75413044,0.000166,2]
[369017484,1751435432834,-210.93893759,0.000166,2]
[369017485,1751435432843,-289.06106241,0.000166,2]
[369017490,1751435437842,-200.93893759,0.000166,2]
[369017491,1751435437852,-241.26634026,0.000166,2]
[369017492,1751435437861,-19.79472215,0.000166,2]
[369017493,1751435437872,-470.20527785,0.000166,2]
[369017495,1751435437881,-490.0,0.000166,2]
[369017496,1751435437896,-1037.89,0.000166,2]
[369017497,1751435437910,-506.86540176,0.000166,2]
[369017498,1751435437920,-28.15413381,0.000166,2]
[369017499,1751435437946,-461.84586619,0.000166,2]
[369017500,1751435437956,-490.0,0.000166,2]
[369017501,1751435437966,-495.71945938,0.000166,2]
[369017502,1751435437975,-490.0,0.000166,2]
[369017503,1751435437985,-490.0,0.000166,2]
[369017504,1751435437996,-2813.57660402,0.000166,2]
[369017505,1751435438020,-682.98443556,0.000166,2]
[369017506,1751435438032,-1449.46896042,0.000166,2]
[369017507,1751435438042,-490.0,0.000166,2]
[369017508,1751435438052,-490.0,0.000166,2]
[369017509,1751435438062,-490.0,0.000166,2]
[369017510,1751435438071,-490.0,0.000166,2]
[369017511,1751435438081,-1059.87349009,0.000166,2]
[369017512,1751435438092,-1000.0,0.000166,2]
[369017513,1751435438104,-873.89650991,0.000166,2]
[369017514,1751435438114,-126.10349009,0.000166,2]
[369017612,1751435440004,-363.89650991,0.000166,2]
[369017615,1751435440014,-490.0,0.000166,2]
[369017618,1751435440024,-1336.35,0.000166,2]
[369017621,1751435440033,-856.33,0.000166,2]
[369017624,1751435440043,-801.86,0.000166,2]
[369017627,1751435440052,-500.0,0.000166,2]
[369017630,1751435440062,-500.0,0.000166,2]
[369017632,1751435440072,-500.0,0.000166,2]
[369017634,1751435440081,-500.0,0.000166,2]
[369017636,1751435440090,-205.68827508,0.000166,2]
[369017638,1751435440100,-500.0,0.000166,2]
[369017640,1751435440109,-186.03471419,0.000166,2]
[369017643,1751435440118,-500.0,0.000166,2]
[369017646,1751435440128,-500.0,0.000166,2]
[369017649,1751435440137,-500.0,0.000166,2]
[369017651,1751435440146,-500.0,0.000166,2]
[369017654,1751435440155,-500.0,0.000166,2]
[369017656,1751435440165,-1266.76,0.000166,2]
[369017659,1751435440174,-490.0,0.000166,2]
[369017662,1751435440183,-505.93,0.000166,2]
[369017665,1751435440193,-494.80906775,0.00016601,2]
[369017668,1751435440203,-174.956526,0.00016601,2]
[369017671,1751435440212,-358.001105,0.00016601,2]
[369017674,1751435440222,-154.882695,0.00016601,2]
[369017678,1751435440231,-166.754196,0.00016601,2]
[369017681,1751435440241,-492.16,0.00016601,2]
[369017683,1751435440250,-157.190481,0.00016601,2]
[369017687,1751435440260,-351.090626,0.00016601,2]
[369017690,1751435440271,-381.432735,0.00016601,2]
[369017693,1751435440280,-490.0,0.00016601,2]
[369017696,1751435440290,-490.0,0.00016601,2]
[369017699,1751435440299,-422.93503941,0.00016601,2]
[369017702,1751435440308,-490.0,0.00016601,2]
[369017704,1751435440317,-490.0,0.00016601,2]
[369017706,1751435440328,-490.0,0.00016601,2]
[369017708,1751435440337,-490.0,0.00016601,2]
[369017710,1751435440346,-490.0,0.00016601,2]
[369017711,1751435440356,-490.0,0.00016601,2]
[369017713,1751435440365,-221.20029483,0.00016601,2]
[369017715,1751435440375,-490.0,0.00016601,2]
[369017717,1751435440385,-568.7,0.00016601,2]
[369017719,1751435440397,-609.29,0.00016601,2]
[369017721,1751435440406,-174.449132,0.00016601,2]
[369017723,1751435440415,-160.492796,0.00016601,2]
[369017725,1751435440425,-497.72,0.00016601,2]
[369017727,1751435440435,-490.0,0.00016601,2]
[369017729,1751435440444,-490.0,0.00016601,2]
[369017731,1751435440452,-490.0,0.00016601,2]
[369017733,1751435440465,-834.37,0.00016601,2]
[369017735,1751435440474,-490.0,0.00016601,2]
[369017737,1751435440483,-490.0,0.00016601,2]
[369017739,1751435440492,-472.75132748,0.00016601,2]
[369017742,1751435440501,-632.23,0.00016601,2]
[369017744,1751435440510,-490.0,0.00016601,2]
[369017746,1751435440520,-490.0,0.00016601,2]
[369017748,1751435440529,-490.0,0.00016601,2]
[369017750,1751435440538,-490.0,0.00016601,2]
[369017752,1751435440547,-489.53890592,0.00016601,2]
[369017753,1751435440556,-501.90751541,0.00016601,2]
[369017755,1751435440565,-490.0,0.00016601,2]
[369017757,1751435440574,-490.0,0.00016601,2]
[369017759,1751435440583,-158.143605,0.00016601,2]
[369017761,1751435440593,-490.0,0.00016601,2]
[369017763,1751435440602,-490.0,0.00016601,2]
[369017765,1751435440611,-490.0,0.00016601,2]
[369017767,1751435440620,-490.0,0.00016601,2]
[369017769,1751435440629,-490.0,0.00016601,2]
[369017771,1751435440639,-490.0,0.00016601,2]
[369017773,1751435440647,-490.0,0.00016601,2]
[369017775,1751435440656,-490.0,0.00016601,2]
[369017777,1751435440666,-490.0,0.00016601,2]
[369017779,1751435440676,-490.0,0.00016601,2]
[369017781,1751435440685,-700.69,0.00016601,2]
[369017783,1751435440694,-538.22,0.00016601,2]
[369017785,1751435440703,-490.0,0.00016601,2]
[369017786,1751435440713,-490.0,0.00016601,2]
[369017788,1751435440723,-490.0,0.00016601,2]